bitfinex/quotes_ETHUSD_20250220
["timestamp","ask_amount","ask_price","bid_price","bid_amount"]
[1740063985434,3.64916,2740.4,2739.7,3.64995]
[1740063985736,3.64903,2740.5,2739.9,3.64963]
[1740063985933,3.64913,2740.4,2739.9,3.64963]
[1740063986136,3.64924,2740.3,2739.7,3.64994]
[1740063986288,3.64913,2740.4,2739.9,3.64966]
[1740063986483,3.64913,2740.4,2739.7,3.64996]
[1740063986484,0.812456,2740.4,2739.7,3.65003]
[1740063986731,0.8264,2740.6,2739.7,4.77]
[1740063986895,0.8264,2740.6,2739.8,3.8297]
[1740063987100,0.8264,2740.6,2740.2,3.64929]
[1740063987501,0.7727,2741.2,2741.1,3.64817]
[1740063987698,0.7727,2741.2,2740.4,3.6491]
[1740063987699,0.7727,2741.7,2740.7,0.8297]
[1740063988329,3.64786,2741.4,2740.7,3.6486]
[1740063988530,3.64781,2741.4,2740.8,3.6485]
[1740063988734,0.7727,2741.7,2741.1,3.64805]
[1740063989088,3.64754,2741.6,2740.9,3.64831]
[1740063989707,0.7727,2741.7,2740.8,4.77]
[1740063989919,0.7727,2741.7,2741.3,3.6478]
[1740063990082,0.7727,2741.7,2741.0,4.45877]
[1740063990279,0.7727,2741.7,2741.3,3.6478]
[1740063991018,0.7727,2741.7,2741.2,4.77]
[1740063991221,0.8042,2742.4,2741.2,4.77]
[1740063991434,1.83089677,2742.4,2741.9,3.64701]
[1740063991631,0.8042,2742.4,2741.7,3.64729]
[1740063991785,3.6468,2742.2,2741.7,3.64735]
[1740063991987,0.8042,2742.4,2741.4,4.77]
[1740063992188,3.64681,2742.2,2741.6,3.64748]
[1740063992408,3.6472,2741.9,2741.4,4.77]
[1740063992721,3.64796,2741.3,2740.7,3.64859]
[1740063992908,7.29599,2741.3,2740.7,3.64859]
[1740063993118,3.64782,2741.4,2740.7,3.64859]
[1740063993324,0.8304,2741.6,2740.6,4.77]
[1740063993520,6.062,2742.0,2740.7,3.8045]
[1740063993729,3.64725,2741.8,2741.3,3.64788]
[1740063993887,0.6062,2741.9,2741.3,3.64788]
[1740063993888,0.6062,2741.9,2741.5,3.64763]
[1740063994220,4.46898,2742.0,2741.5,3.64756]
[1740063994434,3.64725,2741.8,2741.2,4.77]
[1740063994596,3.64725,2741.8,2741.2,8.41802]
[1740063994798,3.6479,2741.4,2741.2,4.77]
[1740063995011,0.03452747,2741.3,2740.8,3.64856]
[1740063995216,0.03452747,2741.3,2740.7,0.8045]
[1740063995413,4.44685,2741.2,2740.5,3.64888]
[1740063995599,3.64837,2741.0,2740.3,9.24069]
[1740063995803,0.7988,2741.2,2740.3,0.8215]
[1740063995804,3.6482,2741.1,2740.3,0.8215]
[1740063996321,3.64868,2740.8,2740.1,3.64937]
[1740063996623,3.64868,2740.8,2739.7,0.315]
[1740063996624,3.64878,2740.7,2739.9,3.64969]
[1740063996832,3.64767,2741.5,2739.9,3.64969]
[1740063996833,3.64903,2740.5,2739.9,3.64969]
[1740063997131,3.64926,2740.3,2739.7,3.64997]
[1740063997337,7.29861,2740.3,2739.7,3.64997]
[1740063997519,3.64937,2740.2,2739.7,3.64991]
[1740063997717,3.64926,2740.3,2739.7,3.64991]
[1740063997920,0.8133,2740.4,2739.9,3.6497]
[1740063998233,0.7909,2740.9,2739.9,0.7716]
[1740063998534,0.7909,2741.3,2740.8,3.64856]
[1740063998734,3.64811,2741.2,2740.6,3.6488]
[1740063998936,0.7909,2741.3,2740.4,3.6491]
[1740063999098,0.7909,2741.3,2740.1,13.54]
[1740063999099,3.64794,2741.3,2740.8,3.64847]
[1740063999429,3.64805,2741.2,2740.7,3.64866]
[1740063999831,3.64805,2741.2,2740.6,3.64875]
[1740064000446,0.55,2741.6,2740.6,3.64875]
[1740064000747,3.64813,2741.2,2740.6,3.64875]
[1740064001039,3.64857,2740.8,2740.3,12.41916]
[1740064001258,3.64857,2740.8,2740.3,8.77]
[1740064001542,3.64872,2740.7,2740.3,8.77]
[1740064001695,3.64872,2740.7,2740.2,3.6493]
[1740064002347,3.64872,2740.7,2740.1,3.64942]
[1740064002509,4.013592,2740.7,2739.9,4.44705]
[1740064002709,0.7512,2741.1,2739.9,0.7973]
[1740064003013,3.64873,2740.7,2740.0,3.64963]
[1740064003213,4.98266769,2740.9,2739.7,4.77]
[1740064003416,0.7599,2740.2,2739.2,0.8179]
[1740064003602,3.64989,2739.9,2739.2,4.46847]
[1740064003792,0.7599,2740.2,2739.2,4.46853]
[1740064003999,3.65004,2739.7,2739.0,3.6509]
[1740064004727,3.65004,2739.7,2738.9,3.65106]
[1740064004728,3.65003,2739.7,2738.9,3.65106]
[1740064004932,3.65033,2739.5,2738.9,3.65106]
[1740064005228,3.65043,2739.4,2738.7,3.65125]
[1740064005390,3.65033,2739.5,2738.7,3.65125]
[1740064005594,0.8174,2739.6,2739.3,5.39855541]
[1740064006413,0.8174,2739.6,2739.3,1.74803541]
[1740064006838,3.6503,2739.5,2739.3,1.74803541]
[1740064007047,1.264143,2739.6,2739.3,1.74803541]
[1740064007244,0.8174,2739.6,2739.3,1.74803541]
[1740064007748,0.8235,2740.0,2739.3,1.74803541]
[1740064008058,3.64926,2740.3,2739.7,3.64995]
[1740064008211,3.64959,2740.1,2739.3,5.39850541]
[1740064008415,3.64931,2740.3,2739.3,1.74803541]
[1740064008613,0.7565,2740.4,2739.4,0.55746354]
[1740064008928,0.7565,2740.4,2739.9,3.64967]
[1740064009429,4.40561,2740.4,2739.9,3.64967]
[1740064009609,4.40561,2740.4,2739.7,3.64995]
[1740064009810,3.64946,2740.2,2739.5,8.42026]
[1740064010015,0.364946,2740.1,2739.5,8.4202]
[1740064010251,0.7565,2740.4,2739.5,4.77]
[1740064010429,4.40562,2740.4,2739.9,3.64976]
[1740064010624,3.64939,2740.2,2739.6,3.65009]
[1740064010955,3.64953,2740.1,2739.6,3.65009]
[1740064011135,3.64939,2740.2,2739.7,3.64995]
[1740064011336,4.454895,2740.2,2739.6,3.65007]
[1740064011554,3.6495,2740.1,2739.5,4.77]
[1740064011766,5.00866769,2740.1,2739.3,1.74803541]
[1740064011974,7.30024,2739.7,2739.3,1.74803541]
[1740064012267,0.55,2740.0,2739.3,1.74803541]
[1740064012418,3.64998,2739.8,2739.3,1.74803541]
[1740064012620,3.65012,2739.7,2739.3,1.74803541]
[1740064012854,3.6502,2739.6,2739.3,1.74803541]
[1740064013020,4.44743,2739.4,2739.3,1.74803541]
[1740064013230,0.797,2739.4,2739.3,1.74803541]
[1740064013438,4.44743,2739.4,2739.3,1.74803541]
[1740064013642,4.892173,2739.4,2738.9,4.77]
[1740064013966,3.65084,2739.1,2738.9,4.77]
[1740064014136,3.65111,2738.9,2738.4,7.3034]
[1740064014461,0.8049,2738.8,2738.2,3.65198]
[1740064014662,0.8049,2738.8,2738.1,4.77]
[1740064014663,1.250501,2738.8,2738.1,4.77]
[1740064014863,3.6515,2738.6,2738.0,3.65221]
[1740064015225,3.6515,2738.6,2737.9,4.77]
[1740064015564,3.65217,2738.1,2737.6,0.74784254]
[1740064015763,3.65225,2738.1,2737.5,4.77]
[1740064016334,3.65212,2738.2,2737.6,3.65283]
[1740064016528,0.807408,2738.2,2737.5,4.77]
[1740064016867,0.807408,2738.2,2737.6,3.65282]
[1740064017162,4.459438,2738.2,2737.6,3.65282]
[1740064017368,3.65227,2738.1,2737.5,4.77]
[1740064017659,4.459438,2738.2,2737.5,8.42296]
[1740064017865,0.77,2738.3,2737.8,3.65251]
[1740064018231,3.65219,2738.1,2737.5,4.77]
[1740064018430,3.65238,2738.0,2737.5,4.77]
[1740064018631,0.77,2738.3,2737.6,3.65281]
[1740064018832,0.77,2738.3,2737.6,3.65283]
[1740064019149,0.77,2738.3,2738.2,3.65203]
[1740064019545,0.77,2738.3,2737.8,3.65246]
[1740064019956,0.77,2738.3,2737.7,3.65268]
[1740064020160,4.42194,2738.3,2737.7,3.65268]
[1740064020470,0.77,2738.3,2737.5,4.77]
[1740064020677,0.801,2737.8,2737.4,3.65304]
[1740064020888,0.801,2737.8,2737.2,1.74937652]
[1740064020889,4.899025,2737.8,2737.2,1.74937652]
[1740064021052,7.3059,2737.6,2737.0,8.42359]
[1740064021236,7.3059,2737.6,2737.0,7.30714]
[1740064021237,3.65294,2737.6,2737.0,7.30714]
[1740064021583,3.65321,2737.4,2736.8,8.42385]
[1740064021890,3.6534,2737.2,2736.6,3.65407]
[1740064022091,0.8081,2737.3,2736.8,3.65381]
[1740064022434,0.8081,2737.3,2736.8,3.65389]
[1740064022639,3.65338,2737.2,2736.6,3.65408]
[1740064022892,3.65346,2737.2,2736.3,4.77]
[1740064023196,0.8081,2737.3,2736.3,4.77]
[1740064023197,4.46142,2737.3,2736.7,3.654]
[1740064023336,4.099642,2737.2,2736.5,3.65421]
[1740064023540,0.446142,2737.2,2736.5,3.65421]
[1740064023756,3.6535,2737.1,2736.3,8.42448]
[1740064023968,7.30774,2736.9,2736.3,8.42448]
[1740064024185,0.446142,2737.2,2736.4,3.65433]
[1740064024365,3.65373,2737.0,2736.4,3.65433]
[1740064024565,0.4254242,2737.1,2736.3,4.77]
[1740064024566,0.4254242,2737.1,2736.7,3.65393]
[1740064024799,0.4254242,2737.1,2736.3,4.77]
[1740064025041,3.65419,2736.6,2736.0,3.65485]
[1740064025184,3.65434,2736.5,2736.0,3.65485]
[1740064025379,3.65434,2736.5,2735.9,3.65508]
[1740064025902,7.30847,2736.6,2735.9,3.655]
[1740064026243,0.774,2736.2,2735.6,8.42544]
[1740064026542,0.774,2736.2,2735.7,3.65533]
[1740064027280,0.774,2736.2,2735.7,3.65537]
[1740064027281,5.237068,2736.2,2735.7,3.65537]
[1740064027480,4.42875,2736.2,2735.7,3.65537]
[1740064027837,4.42875,2736.2,2735.5,3.65555]
[1740064027984,3.65483,2736.1,2735.3,4.77]
[1740064028185,3.65483,2736.1,2734.3,0.18708747]
[1740064028186,0.7535,2736.0,2734.7,4.77]
[1740064028449,0.7535,2736.0,2735.9,3.6551]
[1740064028637,0.7535,2736.0,2735.8,3.65523]
[1740064028939,3.65523,2735.8,2735.2,3.65596]
[1740064029137,3.65523,2735.8,2734.9,4.77]
[1740064029138,0.440873,2735.8,2734.9,4.77]
[1740064029339,0.7535,2736.0,2735.3,3.65589]
[1740064029340,4.40851,2736.0,2735.3,3.65589]
[1740064029542,0.7723,2735.8,2735.1,3.65612]
[1740064029748,3.65551,2735.6,2735.0,3.65619]
[1740064029953,4.42754,2735.8,2735.0,3.65619]
[1740064030156,3.65542,2735.7,2735.1,3.65616]
[1740064030306,4.463716,2735.7,2735.1,3.65617]
[1740064030501,4.463716,2735.7,2734.9,8.42642]
[1740064030502,3.65557,2735.6,2734.9,8.42631]
[1740064030799,0.808296,2735.7,2735.3,3.65583]
[1740064031021,4.463766,2735.7,2735.1,3.6561]
[1740064031215,0.7723,2735.8,2735.1,3.6561]
[1740064031435,3.65541,2735.7,2735.1,3.6561]
[1740064031654,3.65574,2735.5,2734.9,8.42631]
[1740064031859,0.7723,2735.8,2734.9,4.77]
[1740064031860,4.42757,2735.8,2734.9,4.77]
[1740064032068,0.8032,2735.0,2734.5,3.65692]
[1740064032286,3.65651,2734.9,2734.3,3.65712]
[1740064032431,3.65679,2734.7,2734.1,7.31483]
[1740064032626,3.65692,2734.6,2734.0,8.42756]
[1740064032827,3.65659,2734.8,2734.0,8.42758]
[1740064033064,3.65683,2734.7,2734.0,4.77]
[1740064033264,3.65683,2734.7,2733.9,3.65765]
[1740064033265,3.65697,2734.5,2733.9,3.65765]
[1740064033933,0.365683,2734.7,2734.1,3.65747]
[1740064034133,4.022473,2734.7,2734.1,3.65747]
[1740064034331,5.24,2734.9,2734.4,3.657]
[1740064034554,5.24,2734.9,2734.5,3.65687]
[1740064034761,3.6554,2735.7,2734.3,3.65718]
[1740064034762,0.8309,2735.4,2734.8,3.65646]
[1740064034972,0.8309,2735.4,2734.6,3.6568]
[1740064034973,0.8309,2735.4,2735.3,3.6559]
[1740064035176,0.8309,2735.4,2734.7,4.77]
[1740064035374,0.8309,2735.7,2735.3,3.6559]
[1740064035586,0.8309,2735.7,2735.6,3.6555]
[1740064035787,0.8309,2735.7,2735.3,3.65582]
[1740064036009,0.8309,2735.7,2735.4,3.65575]
[1740064036190,0.8309,2735.7,2735.3,3.65582]
[1740064036392,0.8309,2735.7,2735.6,3.6555]
[1740064036701,3.6554,2735.7,2735.0,3.7694]
[1740064036993,4.4375,2735.5,2735.0,3.0]
[1740064037132,3.65616,2735.2,2734.8,4.77]
[1740064037337,3.65655,2734.9,2734.3,3.6572]
[1740064037589,0.7593,2734.9,2734.6,3.65675]
[1740064037883,0.7593,2734.8,2733.9,5.5707]
[1740064038086,0.7593,2734.8,2734.0,3.65764]
[1740064038383,0.7593,2734.8,2734.1,3.0]
[1740064038547,0.7593,2734.8,2734.0,7.31508]
[1740064038752,3.65706,2734.5,2733.9,6.65773]
[1740064039287,3.65765,2734.0,2733.4,3.65835]
[1740064039489,3.65763,2734.1,2733.5,3.65826]
[1740064039630,3.65728,2734.3,2733.6,3.65817]
[1740064039858,0.7664,2734.4,2733.5,3.0]
[1740064040206,3.65731,2734.3,2733.2,3.65871]
[1740064040361,0.8812183,2734.3,2733.8,3.65781]
[1740064040558,3.65759,2734.1,2733.5,3.65819]
[1740064041175,4.5385183,2734.3,2733.7,3.65796]
[1740064041477,3.65785,2733.9,2733.3,3.65845]
[1740064041696,3.65785,2733.9,2733.1,3.65882]
[1740064041697,4.44585,2733.7,2733.1,3.65882]
[1740064041996,4.102795,2733.6,2733.1,3.65882]
[1740064042305,0.444585,2733.6,2733.1,3.65882]
[1740064042461,0.7878,2733.7,2733.1,3.65882]
[1740064042660,0.7878,2733.7,2732.9,3.65906]
[1740064042661,0.7878,2733.7,2733.0,3.0]
[1740064042986,0.768,2734.1,2733.6,3.6581]
[1740064043159,1.48802183,2734.1,2733.2,3.65864]
[1740064043364,5.14556183,2734.1,2733.5,3.65827]
[1740064043592,1.48802183,2734.1,2733.2,3.65863]
[1740064043798,1.48802183,2734.1,2733.8,3.65786]
[1740064043996,0.70390218,2734.0,2733.6,3.65812]
[1740064044315,0.70390218,2734.0,2733.4,3.65842]
[1740064044316,4.36165218,2734.0,2733.4,3.65842]
[1740064044512,0.70390218,2734.0,2733.0,3.65895]
[1740064044661,3.65803,2733.8,2733.0,3.65895]
[1740064044862,3.65819,2733.6,2733.0,7.31776]
[1740064045214,3.65852,2733.4,2732.9,3.65909]
[1740064045356,3.65852,2733.4,2732.6,3.8112211]
[1740064045711,3.65869,2733.3,2732.6,3.8112011]
[1740064045911,3.65915,2732.9,2732.6,0.1517811]
[1740064046208,3.65844,2733.4,2732.6,0.1517811]
[1740064046209,0.8209,2732.8,2732.6,0.1517811]
[1740064046391,0.8209,2732.8,2732.7,3.65938]
[1740064046704,0.8209,2732.8,2732.6,0.1517811]
[1740064046705,0.8132,2733.3,2732.6,0.1517811]
[1740064046877,0.8132,2733.3,2733.2,3.65871]
[1740064047209,0.8132,2733.3,2733.1,3.65884]
[1740064047414,0.8132,2733.9,2733.7,3.65801]
[1740064047558,3.65791,2733.8,2733.3,3.65856]
[1740064047758,0.447111,2733.7,2733.3,3.65852]
[1740064047957,0.8132,2733.9,2733.6,3.65817]
[1740064048271,0.8132,2733.9,2733.4,3.65844]
[1740064048473,0.8132,2733.9,2733.1,3.65884]
[1740064048687,0.8132,2733.9,2733.7,3.65803]
[1740064049016,0.8132,2733.9,2733.3,3.65849]
[1740064049172,0.8132,2733.9,2732.7,8.42932]
[1740064049173,3.65868,2733.3,2732.7,8.42932]
[1740064049374,4.46945,2733.2,2732.6,3.8112211]
[1740064049583,0.8107,2733.2,2732.6,0.1517811]
[1740064049898,0.8107,2733.2,2732.9,3.65909]
[1740064050101,0.8107,2733.2,2732.7,3.65925]
[1740064050412,4.46954,2733.2,2732.6,3.1517811]
[1740064050567,1.257654,2733.2,2732.6,3.1517811]
[1740064050763,0.8107,2733.2,2732.6,0.1517811]
[1740064050992,3.65938,2732.7,2732.6,0.1517811]
[1740064051161,4.47958,2732.7,2732.6,0.1517811]
[1740064051710,0.8202,2732.7,2732.6,0.1517811]
[1740064052217,5.24,2732.9,2732.6,0.1517811]
[1740064052383,0.6001,2732.8,2732.6,0.1517811]
[1740064052711,5.24,2732.9,2732.6,0.1517811]
[1740064053208,3.65925,2732.8,2732.6,0.1517811]
[1740064053810,4.47558,2732.7,2732.6,0.1517811]
[1740064054116,5.02558,2732.7,2732.6,0.1517811]
[1740064054482,10.26558,2732.7,2732.6,0.1517811]
[1740064054810,11.658063,2732.7,2732.6,0.1517811]
[1740064055736,14.658063,2732.7,2732.6,0.1517811]
[1740064055881,15.22094929,2732.7,2732.6,1.1e-06]
[1740064057121,0.801,2732.4,2730.9,3.66178]
[1740064057296,4.46608,2731.5,2730.8,3.66184]
[1740064057494,4.46608,2731.5,2730.7,3.0]
[1740064057745,4.46608,2731.5,2730.6,4.4145]
[1740064057746,4.46608,2731.5,2730.6,0.7524]
[1740064058046,4.46608,2731.5,2730.8,3.66189]
[1740064058256,3.66137,2731.3,2730.6,3.66212]
[1740064058460,3.66115,2731.4,2730.8,3.66182]
[1740064058616,0.805,2731.5,2731.3,3.66116]
[1740064058950,0.805,2731.5,2731.1,3.66145]
[1740064059117,0.805,2731.5,2731.4,3.66112]
[1740064059317,7.88315769,2732.0,2730.6,3.66219]
[1740064059318,0.7615,2732.0,2730.9,3.0]
[1740064059518,0.7615,2732.0,2731.6,3.66085]
[1740064059849,0.7615,2732.0,2731.9,3.66045]
[1740064060020,0.798,2732.6,2732.3,3.65984]
[1740064060225,4.45759,2732.6,2732.0,3.66021]
[1740064060417,3.65979,2732.4,2731.8,3.6605]
[1740064060603,0.798,2732.6,2731.9,3.66035]
[1740064060804,0.2190483,2732.5,2731.6,3.6608]
[1740064061149,3.65987,2732.4,2731.8,3.66052]
[1740064061353,3.66014,2732.2,2731.5,3.66098]
[1740064061657,0.8033,2732.0,2731.4,3.66105]
[1740064061824,0.8033,2732.7,2731.4,3.66105]
[1740064062020,3.0,2732.6,2731.3,7.77]
[1740064062210,0.38033,2732.5,2731.8,3.6605]
[1740064062408,0.38033,2732.5,2731.8,3.66047]
[1740064062628,0.38033,2732.5,2731.4,0.8523]
[1740064062629,0.8033,2732.7,2731.6,3.0]
[1740064062809,0.7876,2733.1,2733.0,3.65898]
[1740064063161,4.22276769,2733.6,2732.4,0.8192]
[1740064063162,0.7876,2733.5,2732.4,4.47893]
[1740064063310,5.24,2733.7,2731.9,4.77]
[1740064063311,4.22276769,2733.2,2732.1,0.7766]
[1740064063510,4.22276769,2733.2,2731.9,3.66037]
[1740064063511,3.6596,2732.6,2731.9,3.66037]
[1740064064013,3.65953,2732.6,2731.7,3.7766]
[1740064064352,4.48323,2732.4,2731.8,3.66057]
[1740064064558,4.48323,2732.4,2731.4,0.8523]
[1740064064559,3.66025,2732.1,2731.4,3.8523]
[1740064064866,4.48324,2732.4,2731.7,3.66064]
[1740064065229,0.8234,2732.4,2731.9,3.6604]
[1740064065415,4.4832,2732.4,2731.8,3.66056]
[1740064065756,1.637676,2732.4,2731.6,3.0]
[1740064066066,3.66049,2731.9,2731.3,3.66125]
[1740064066228,3.66049,2731.9,2731.2,3.66129]
[1740064066739,3.66065,2731.8,2731.2,3.66129]
[1740064066945,3.66098,2731.6,2731.0,4.41589]
[1740064067106,0.8239,2731.7,2731.0,3.66159]
[1740064067311,3.66099,2731.5,2730.8,6.66181]
[1740064067529,3.66129,2731.3,2730.7,3.66204]
[1740064067757,3.66129,2731.3,2730.8,3.66191]
[1740064068161,3.66093,2731.6,2731.0,3.66157]
[1740064068367,0.448483,2731.6,2731.3,3.66125]
[1740064068672,0.8239,2731.7,2731.0,4.49008]
[1740064068841,4.48463,2731.7,2731.2,3.66137]
[1740064069044,0.8239,2731.7,2731.0,0.8285]
[1740064069243,3.66093,2731.6,2730.9,3.66166]
[1740064069563,3.66093,2731.6,2731.1,3.66148]
[1740064069564,0.448483,2731.6,2731.1,3.66148]
[1740064069741,4.48465,2731.7,2731.1,3.66148]
[1740064069943,4.48465,2731.7,2730.9,3.66174]
[1740064070285,0.8239,2731.7,2730.7,3.66193]
[1740064070570,3.66135,2731.3,2730.5,4.4907]
[1740064070775,3.66153,2731.1,2730.5,4.4907]
[1740064070978,0.8239,2730.9,2730.3,3.66255]
[1740064071142,0.366153,2731.0,2730.5,3.66225]
[1740064071331,4.027853,2731.0,2730.5,3.66225]
[1740064071526,0.366153,2731.0,2730.3,3.66252]
[1740064071722,0.366153,2731.0,2730.7,3.66206]
[1740064071977,0.366153,2731.0,2730.2,0.55]
[1740064071978,0.8239,2731.2,2730.5,0.811]
[1740064072142,0.7734,2731.7,2731.1,3.66141]
[1740064072466,0.7734,2731.7,2731.4,3.66108]
[1740064072686,0.7734,2731.7,2731.1,3.66152]
[1740064072884,0.7734,2731.7,2730.5,0.811]
[1740064072885,0.7734,2731.7,2730.9,7.32342]
[1740064073091,0.7734,2731.7,2730.9,3.66171]
[1740064073382,7.32241,2731.4,2730.8,6.66191]
[1740064073527,3.66119,2731.4,2730.8,6.66191]
[1740064073731,7.32191,2731.6,2731.0,3.66158]
[1740064073967,3.661,2731.5,2731.0,3.66158]
[1740064074179,3.66113,2731.4,2730.9,3.66178]
[1740064074480,3.66113,2731.4,2730.8,3.0]
[1740064074688,3.66175,2731.0,2730.4,3.66237]
[1740064075000,3.66173,2731.0,2730.5,3.66229]
[1740064075481,0.7671,2731.1,2730.2,1.3277]
[1740064075652,0.7671,2731.1,2730.6,3.66212]
[1740064075850,3.66166,2731.0,2730.2,4.99032]
[1740064076051,0.442876,2730.9,2730.2,0.55]
[1740064076381,3.6626,2730.3,2730.2,0.55]
[1740064078189,4.47097,2730.4,2730.2,0.55]
[1740064078390,0.8085,2730.4,2730.2,0.55]
[1740064079036,3.66193,2730.8,2730.2,0.55]
[1740064079236,0.8156,2730.9,2730.2,0.55]
[1740064079237,4.47742,2730.9,2730.2,0.55]
[1740064079567,4.027333,2731.4,2730.5,3.66228]
[1740064079568,3.66152,2731.2,2730.5,3.66228]
[1740064079765,3.66167,2731.0,2730.5,3.66228]
[1740064080090,3.6617,2731.0,2730.3,7.32506]
[1740064080400,3.6626,2730.3,2730.2,0.55]
[1740064080542,4.80066,2730.3,2730.2,0.55]
[1740064081078,4.80066,2730.3,2729.1,3.66414]
[1740064081079,3.663,2730.0,2729.1,3.66413]
[1740064081292,3.66383,2729.4,2728.3,13.54]
[1740064081444,3.66383,2729.4,2728.3,3.66528]
[1740064081650,3.66408,2729.2,2728.8,0.7819]
[1740064081884,3.66408,2729.2,2728.6,3.66485]
[1740064082092,1.161908,2729.2,2728.4,0.7505]
[1740064082308,3.66462,2728.8,2728.2,4.77]
[1740064082447,3.66453,2728.9,2728.2,3.66529]
[1740064082642,3.66453,2728.9,2728.3,3.66515]
[1740064082878,3.66461,2728.8,2728.2,3.6654]
[1740064083096,0.7955,2729.2,2728.6,3.66487]
[1740064083242,0.7955,2729.2,2728.4,3.66514]
[1740064083243,3.66431,2729.1,2728.4,3.66514]
[1740064083454,3.66431,2729.1,2727.9,3.66568]
[1740064083455,3.66507,2728.5,2727.9,3.66568]
[1740064083679,3.6651,2728.5,2727.8,8.43594]
[1740064083859,0.55,2728.7,2727.6,3.66613]
[1740064084060,3.66544,2728.2,2727.6,3.66613]
[1740064084264,3.66555,2728.1,2727.4,3.6664]
[1740064084747,5.661461,2728.6,2727.3,3.66656]
[1740064084748,3.66579,2728.0,2727.3,3.66656]
[1740064085069,3.66568,2728.0,2727.1,0.1517811]
[1740064085378,3.66655,2727.4,2727.1,0.1517811]
[1740064085559,4.400016,2727.3,2727.1,0.1517811]
[1740064085759,0.8277,2727.2,2727.1,0.1517811]
[1740064086167,4.49446,2727.2,2727.1,0.1517811]
[1740064086366,0.8277,2727.2,2727.1,0.1517811]
[1740064086568,4.49446,2727.2,2727.1,0.1517811]
[1740064086761,5.0172356,2727.2,2727.1,0.1517811]
[1740064086963,5.5672356,2727.2,2727.1,0.1517811]
[1740064087165,1.3504756,2727.2,2727.1,0.1517811]
[1740064087350,0.8277,2727.2,2727.1,0.1517811]
[1740064087988,0.309,2727.7,2727.3,3.66656]
[1740064088182,0.309,2727.7,2727.1,3.8186411]
[1740064088603,3.97512,2727.7,2727.1,0.1517811]
[1740064088871,5.79,2728.0,2727.8,3.66589]
[1740064088872,5.24,2728.0,2727.8,3.66589]
[1740064089106,0.7523,2728.2,2727.1,0.9350811]
[1740064089262,1.194068,2728.2,2727.1,0.9350811]
[1740064089464,0.7827,2727.6,2727.1,3.8186711]
[1740064089984,0.7827,2727.6,2727.2,3.66676]
[1740064090157,0.7995,2728.1,2727.5,3.66626]
[1740064090502,0.7995,2728.1,2727.7,3.666]
[1740064090704,4.46514,2728.1,2727.3,7.33306]
[1740064090925,0.7995,2728.1,2727.1,0.1517811]
[1740064091063,5.24,2728.4,2727.6,3.66622]
[1740064091257,3.66522,2728.4,2727.7,3.66608]
[1740064091495,3.6658,2728.0,2727.3,3.6666]
[1740064091700,3.6658,2728.0,2727.2,7.44122]
[1740064091701,0.7816,2728.1,2727.1,0.1517811]
[1740064091857,3.66636,2727.5,2727.1,0.1517811]
[1740064092053,4.4472,2728.1,2727.1,0.1517811]
[1740064092298,4.4472,2728.1,2727.6,3.66621]
[1740064092299,0.7816,2728.1,2727.6,3.66621]
[1740064092501,3.6657,2728.0,2727.4,3.66643]
[1740064092706,0.7816,2728.1,2727.6,3.66612]
[1740064093004,3.66587,2727.9,2727.3,0.7785]
[1740064093214,4.44717,2728.1,2727.3,0.7785]
[1740064093352,0.7816,2728.1,2727.3,4.44506]
[1740064093554,3.66579,2728.0,2727.4,3.66648]
[1740064093806,0.811283,2728.0,2727.5,3.66626]
[1740064094010,0.811283,2728.0,2727.3,0.7785]
[1740064094159,4.44716,2728.1,2727.5,3.66625]
[1740064094358,0.7816,2728.1,2727.3,4.44505]
[1740064094603,0.7816,2728.1,2727.4,3.66638]
[1740064094817,0.7816,2728.1,2727.5,3.66626]
[1740064095100,5.24,2728.3,2727.9,3.6658]
[1740064095408,3.66584,2727.9,2727.3,4.445]
[1740064095607,3.66606,2727.8,2727.1,3.8186011]
[1740064095904,3.66632,2727.6,2727.1,0.1517811]
[1740064096312,0.7978,2727.7,2727.1,3.8185811]
[1740064096606,3.66583,2727.9,2727.3,3.66651]
[1740064096758,4.479138,2727.9,2727.1,3.8185811]
[1740064096953,0.813308,2727.9,2727.1,0.1517811]
[1740064097154,3.66599,2727.8,2727.3,3.66654]
[1740064097407,3.66599,2727.8,2727.1,3.8186011]
[1740064097408,0.8016,2728.0,2727.1,0.1517811]
[1740064097607,3.66636,2727.5,2727.1,0.1517811]
[1740064097759,7.3328,2727.5,2727.1,0.1517811]
[1740064097967,3.66636,2727.5,2727.1,0.1517811]
[1740064098193,7.3328,2727.5,2727.1,0.1517811]
[1740064098373,3.66676,2727.2,2727.1,0.1517811]
[1740064098788,3.6667,2727.3,2727.1,0.1517811]
[1740064099263,0.8075,2727.4,2727.1,0.1517811]
[1740064099264,4.47406,2727.4,2727.1,0.1517811]
[1740064100137,3.66664,2727.3,2727.1,0.1517811]
[1740064100505,4.47408,2727.4,2727.1,0.1517811]
[1740064100701,3.66676,2727.2,2727.1,0.1517811]
[1740064101105,3.66675,2727.3,2727.1,0.1517811]
[1740064101401,3.66676,2727.2,2727.1,0.1517811]
[1740064101606,5.02526,2727.2,2727.1,0.1517811]
[1740064102252,4.47526,2727.2,2727.1,0.1517811]
[1740064102545,5.813461,2727.2,2727.1,0.1517811]
[1740064102947,15.30657371,2727.2,2727.1,0.1517811]
[1740064103155,11.053461,2727.2,2727.1,0.1517811]
[1740064103501,15.30657371,2727.2,2727.1,0.1517811]
[1740064103703,11.053461,2727.2,2727.1,0.1517811]